Cogmind - Beta 15 @@@ ROGUE MODE // 2025.05.12 @ 20:47:57 Player: amhuman Result: Destroyed by TG-8D5(R) with Subdweller Laser Performance ------------- Evolutions (0) 0 Regions Visited (3) 600 Robots Destroyed (13) 65 Value Destroyed (507) 507 Prototype IDs (0) 0 Alien Tech Used (0) 0 Bonus (25) 25 TOTAL SCORE: 1197 Bonus ------- Follower Combat Kills 25 Cogmind --------- Core Integrity 0/250 Matter 300/300 Energy 73/100 System Corruption 0% Temperature Cool (6) Movement Walking (120) Location -10/Subcaves Parts ------- > --- POWER (1) -------- (None) > --- PROPULSION (2) --- Aluminum Leg > --- UTILITY (2) ------ Small Storage Unit > --- WEAPON (2) ------- (None) > --- INVENTORY (8) ---- Improved Heat Sink Large Matter Pod (150) Faulty Experimental Sensor Array Seismic Detector Propulsion Shielding Peak State ------------ > --- POWER ------------ Light Nuclear Core > --- PROPULSION ------- Light Treads > --- UTILITY ---------- Improved Heat Sink Small Storage Unit > --- WEAPON ----------- Medium Laser Rocket Launcher > --- INVENTORY -------- Improved Heat Sink Large Matter Pod Experimental Sensor Array Seismic Detector Propulsion Shielding Mining Laser [Rating: 12] Favorites ----------- Power Light Ion Engine Engine Light Ion Engine Power Core Light Nuclear Core Propulsion Light Treads Treads Light Treads Leg Aluminum Leg Utility Small Storage Unit Device Improved Heat Sink Storage Small Storage Unit Weapon Medium Laser Energy Gun Medium Laser Ballistic Gun Assault Rifle Launcher Rocket Launcher Special Weapon Mining Laser Build | -11 -10 -10 -10 ------- Run | Yrd Mat Min Sub Slots Evolved . | . . . . Power . | . . . . Propulsion . | . . . . Utility . | . . . . Weapon . | . . . . Parts Attached 15 | 6 1 4 4 Power 3 | 1 . 1 1 Engine 2 | 1 . 1 . Core 1 | . . . 1 Reactor . | . . . . Propulsion 4 | 2 . 1 1 Treads 3 | 2 . 1 . Leg 1 | . . . 1 Wheel . | . . . . Hover . | . . . . Flight . | . . . . Utility 2 | 1 1 . . Device 1 | . 1 . . Storage 1 | 1 . . . Processor . | . . . . Hackware . | . . . . Protection . | . . . . Artifact . | . . . . Weapon 6 | 2 . 2 2 Energy Gun 3 | 1 . 1 1 Energy Cannon . | . . . . Ballistic Gun 1 | 1 . . . Ballistic Cannon . | . . . . Launcher 1 | . . 1 . Special Weapon 1 | . . . 1 Impact Weapon . | . . . . Slashing Weapon . | . . . . Piercing Weapon . | . . . . Special Melee Weapon . | . . . . Unidentified Prototypes . | . . . . Parts Lost 13 | . . 4 9 Power 3 | . . 2 1 Propulsion 3 | . . 1 2 Utility 1 | . . . 1 Weapon 6 | . . 1 5 Highest Loss Streak 9 | . . 2 9 To Critical Strikes . | . . . . Average Backups 5 | 1 3 7 6 Power . | . 1 . . Propulsion . | . . . . Utility 3 | . . 4 5 Weapon 1 | . 1 2 1 Tool/Special . | . . . . Unused Backups 7 | . . 2 5 Power . | . . . . Propulsion . | . . . . Utility 7 | . . 2 5 Weapon . | . . . . Tool/Special . | . . . . Average Slot Usage (%) 92 | . 97 92 59 Engine 12 | . 14 12 . Treads 27 | . 28 27 8 Device 13 | . 11 14 11 Storage 14 | . 14 14 14 Energy Gun 15 | . 14 15 16 Ballistic Gun 6 | . 14 4 . Launcher 2 | . . 3 2 Peak Build Rating 12 | 6 9 11 12 Average Rating 8 | 4 8 9 7 On Entrance 6 | . 6 9 9 Naked Turns . | . . . . Heaviest Build 17 | 12 13 15 17 Greatest Support 40 | 40 40 40 40 Greatest Overweight (x) 2 | . . . 2 Average Overweight (x) . | . . . . Largest Inventory Capacity 8 | 8 8 8 8 Average Capacity 7 | 7 8 8 8 Most Carried 8 | 2 5 8 7 Average Carried 5 | 1 3 7 5 Final Capacity 8 | 8 8 8 8 Final Carried 7 | 2 5 7 5 Class Distribution -------------------- 100% | Mutant Dominant Class ---------------- Mutant | -10/Materials Mutant | -10/Mines Mutant | -10/Subcaves Resources | -11 -10 -10 -10 ----------- Run | Yrd Mat Min Sub Matter Collected 656 | 260 134 242 20 Remotely . | . . . . Salvage Created 456 | . 233 223 . Parts 19 | . 11 8 . Haulers Intercepted . | . . . . Recyclers Shooed . | . . . . Parts Field Recycled . | . . . . Retrieved Matter . | . . . . Parts Self-Destructed . | . . . . Prevented . | . . . . Kills | -11 -10 -10 -10 ------- Run | Yrd Mat Min Sub Combat Hostiles Destroyed 13 | . 6 7 . Guns 10 | . 6 4 . AOE 2 | . . 2 . Classes Destroyed 1 | . 1 . . Grunt 13 | . 6 7 . Best Kill Streak 3 | . 3 2 . Combat Bots Only 3 | . 3 2 . Max Kills in Single Turn 2 | . 1 2 . Gunslinging . | . . . . Exploded 2 | . . 2 . Melee . | . . . . Uniques/NPCs Destroyed . | . . . . Combat | -11 -10 -10 -10 -------- Run | Yrd Mat Min Sub Hostile Shots Fired 102 | . 30 38 34 Missed 29 | . 10 12 7 Hits 73 | . 20 26 27 Projectile 73 | . 20 26 27 Damage Taken 1327 | . 243 364 720 Core 256 | . . 28 228 Absorbed by Shields . | . . . . Core Remaining (%) 100 | 100 . . . Volleys Fired 45 | . 19 20 6 Largest 2 | . 2 2 2 Hottest 115 | . 70 100 115 Shots Fired 86 | . 38 39 9 Gun 82 | . 38 36 8 Cannon . | . . . . Launcher 4 | . . 3 1 Special . | . . . . Kinetic 30 | . 19 11 . Thermal 52 | . 19 25 8 Explosive 4 | . . 3 1 Electromagnetic . | . . . . Robot Hit Streak 11 | . 7 11 5 Robot Miss Streak 5 | . 2 2 5 Penetration Max . | . . . . Secondary Targets . | . . . . Shots Hit Robots 62 | . 28 29 5 Core Hits 30 | . 14 16 . Critical Kills . | . . . . Critical Parts Destroyed . | . . . . Critical Strikes 7 | . 4 2 1 Burn 7 | . 4 2 1 Melee Attacks . | . . . . Impact . | . . . . Slashing . | . . . . Piercing . | . . . . Sneak Attacks . | . . . . Combat Hostiles . | . . . . Follow-up Attacks . | . . . . Damage Inflicted 1034 | . 361 602 71 Guns 772 | . 361 348 63 Cannons . | . . . . Explosions 254 | . . 254 . Melee . | . . . . Ramming 8 | . . . 8 Kinetic 257 | . 164 93 . Thermal 515 | . 197 255 63 Explosive 254 | . . 254 . Electromagnetic . | . . . . Impact . | . . . . Slashing . | . . . . Piercing . | . . . . Highest Corruption . | . . . . Average Corruption . | . . . . Corruption Purged . | . . . . Corruption Blocked . | . . . . Overload Shots . | . . . . Overflow Damage 33 | . . . 33 Projectiles . | . . . . Explosions 33 | . . . 33 Melee . | . . . . Knockbacks . | . . . . Impact . | . . . . Kinetic . | . . . . Secondary . | . . . . Self-Inflicted Damage 46 | . . . 46 Shots 1 | . . . 1 Rammed . | . . . . Targets Rammed 6 | . . . 6 Kicked 6 | . . . 6 Crushed . | . . . . Highest Temperature 123 | . 123 8 . Average Temperature 48 | . 66 3 . Received Heat Transfer 552 | . 132 207 213 Siege Activations . | . . . . Martial Activations . | . . . . Shielding Activations . | . . . . Robots Disrupted . | . . . . Combat Hostiles . | . . . . Robots Corrupted . | . . . . Combat Hostiles . | . . . . Parts Fried . | . . . . Impact Corruptions . | . . . . Robots Melted 1 | . . 1 . Combat Hostiles 1 | . . 1 . Parts Melted 3 | . 1 2 . Heat Transferred 2035 | . 888 888 259 Parts Sabotaged . | . . . . Parts Stolen . | . . . . Parts Stripped . | . . . . Power Chain Reactions . | . . . . Alert | -11 -10 -10 -10 ------- Run | Yrd Mat Min Sub Maximum Alert Level . | . . . . Low Security (%) 100 | 100 100 100 . Level 1 . | . . . . Level 2 . | . . . . Level 3 . | . . . . Level 4 . | . . . . Level 5 . | . . . . High Security . | . . . . Max Security . | . . . . Peak Influence 100 | . 100 69 . Initial 8 | . . 8 . Average 20 | . 39 14 . Influence Increases 473 | . 203 270 . Destroy 0b10 Robot/C 280 | . 120 160 . Destroy Leader 60 | . 20 40 . Allied During Kill 6 | . . 6 . Successful Hack 18 | . 18 . . Select Force Hacks 30 | . 30 . . Destroy Structure 19 | . . 19 . Lose Combat Pursuer 60 | . 15 45 . Influence Decreases 473 | . 180 271 22 Entered New Map 27 | . . 15 12 Time Decay 416 | . 180 236 . Lost Part 20 | . . 20 . Lost Ally 10 | . . . 10 Squads Dispatched 2 | . 2 . . Investigation 1 | . 1 . . Extermination . | . . . . Reinforcement 1 | . 1 . . Assault . | . . . . Garrison . | . . . . Intercept . | . . . . Searches Triggered . | . . . . Construction Impeded . | . . . . Haulers Reinforced . | . . . . Active Scanning Responses . | . . . . Cargo Convoy Interrupts . | . . . . Stealth | -11 -10 -10 -10 --------- Run | Yrd Mat Min Sub Distress Signals 2 | . 2 . . Communications Jammed . | . . . . Distress Signals . | . . . . Times Spotted 24 | . 12 10 2 Peak Tracking Total 3 | . 3 2 2 Tactical Retreats 3 | . 1 2 . Traps | -11 -10 -10 -10 ------- Run | Yrd Mat Min Sub Traps Triggered . | . . . . Indirectly . | . . . . Trap Hack Attempts . | . . . . Triggered . | . . . . Disarmed . | . . . . Reprogrammed . | . . . . Reused . | . . . . Traps Extracted . | . . . . Installed . | . . . . Triggered . | . . . . Machines | -11 -10 -10 -10 ---------- Run | Yrd Mat Min Sub Machines Disabled . | . . . . Max in Single Turn . | . . . . Machines Repaired . | . . . . Machines Dismantled . | . . . . Machines Sabotaged . | . . . . Overloaded Fab Kills . | . . . . Hacking | -11 -10 -10 -10 --------- Run | Yrd Mat Min Sub Machines Accessed 4 | . 4 . . Terminals 3 | . 3 . . Fabricators . | . . . . Repair Stations . | . . . . Recycling Units 1 | . 1 . . Scanalyzers . | . . . . Garrison Access . | . . . . Total Hacks 9 | . 9 . . Successful 7 | . 7 . . Failed 2 | . 2 . . Catastrophic . | . . . . Database Lockouts . | . . . . Manual 6 | . 6 . . Terminals 7 | . 7 . . Fabricators . | . . . . Repair Stations . | . . . . Recycling Units 2 | . 2 . . Scanalyzers . | . . . . Garrison Access . | . . . . Terminal Hacks 5 | . 5 . . Robot Analysis 2 | . 2 . . Branch Access Points 1 | . 1 . . Emergency Access Points 1 | . 1 . . Terminal Index 1 | . 1 . . Fabricator Hacks . | . . . . Repair Station Hacks . | . . . . Recycling Unit Hacks . | . . . . Scanalyzer . | . . . . Garrison Access Hacks . | . . . . Unauthorized Hacks 2 | . 2 . . Terminals 1 | . 1 . . Botnet 1 | . 1 . . Fabricators . | . . . . Repair Stations . | . . . . Recycling Units 1 | . 1 . . Tunnel 1 | . 1 . . Scanalyzers . | . . . . Garrison Access . | . . . . Data Cores Recovered . | . . . . Used . | . . . . Hacking Detections 4 | . 4 . . Full Trace Events . | . . . . Feedback Events . | . . . . Feedback Blocked . | . . . . Robot Schematics Acquired . | . . . . Robots Built . | . . . . Authchips . | . . . . Time . | . . . . Total Robot Build Rating . | . . . . Part Schematics Acquired . | . . . . Parts Built . | . . . . Authchips . | . . . . Time . | . . . . Total Part Build Rating . | . . . . Parts Repaired . | . . . . Time . | . . . . Parts Recycled . | . . . . Recycled Matter . | . . . . Retrieved Matter . | . . . . Retrieved Components . | . . . . Parts Scanalyzed . | . . . . Part Schematics Acquired . | . . . . Parts Damaged . | . . . . Bothacking | -11 -10 -10 -10 ------------ Run | Yrd Mat Min Sub Used RIF Installer . | . . . . Robots Hacked . | . . . . Non-combat . | . . . . Combat . | . . . . Robot Hacks Applied . | . . . . Relay Couplers Released . | . . . . Fabnet Peak Effective % . | . . . . Robots Rewired . | . . . . Allies Hacked . | . . . . Hacks Repelled . | . . . . Allies | -11 -10 -10 -10 -------- Run | Yrd Mat Min Sub Total Allies 3 | . . 3 . Largest Group 3 | . . 3 2 Highest-Rated Group 40 | . . 40 32 Highest-Rated Ally 16 | . . 16 16 Total Orders . | . . . . Ally Attacks 16 | . . 13 3 Total Damage 215 | . . 169 46 Kills 1 | . . 1 . Allies Corrupted . | . . . . Allies Melted . | . . . . Intel | -11 -10 -10 -10 ------- Run | Yrd Mat Min Sub Active Infowar (turns) . | . . . . Robot Analysis Total 2 | . 2 . . Derelict Logs Recovered 1 | . . 1 . Drone Launches . | . . . . Drone Recoveries . | . . . . Exploration | -11 -10 -10 -10 ------------- Run | Yrd Mat Min Sub Turns Passed 1502 | 88 397 977 40 Spaces Moved 791 | 50 208 525 8 Core 4 | 2 . . 2 Treads 787 | 48 208 525 6 Legs . | . . . . Wheels . | . . . . Hover . | . . . . Flight . | . . . . Fastest Speed 50 | 50 160 160 100 Average Speed 159 | 155 160 160 151 Slowest Speed 160 | 160 160 160 160 Overloaded Moves . | . . . . Propulsion Burnouts . | . . . . Robots Hopped . | . . . . Potential Cave-ins . | . . . . Cave-ins Triggered . | . . . . Exploration Rate (%) 34 | 5 37 96 1 Regions Visited 3 Branch Regions 2 Pre-discovered Areas 1 | . 1 . . Known Exits Taken 1 | . 1 . . Unknown Exits Taken 2 | 1 . 1 . Scrap Searched 1 | . . 1 . Spaces Dug . | . . . . Terrain Destroyed 34 | . . 27 7 Melee . | . . . . Projectile . | . . . . AOE 34 | . . 27 7 Terrain Rammed . | . . . . Walls Destroyed . | . . . . Machines Disabled . | . . . . Actions | -11 -10 -10 -10 --------- Run | Yrd Mat Min Sub Total 939 | 57 234 623 25 Wait 71 | . 4 67 . Move 788 | 49 207 524 8 Hop . | . . . . Pick Up 11 | 2 3 6 . Fast Attach 11 | 6 1 1 3 Attach 4 | . . 2 2 Detach . | . . . . Swap 1 | . . 1 . Drop 2 | . . 2 . Fire 45 | . 19 20 6 Melee . | . . . . Ram . | . . . . Kick 6 | . . . 6 Crush . | . . . . Escape Stasis . | . . . . Rewire . | . . . . Trap . | . . . . Miscellaneous . | . . . . Route ------- -11/Scrapyard -10/Materials (discovered 2 exits: [*Mat] / *Min) -10/Mines (discovered 3 exits: [*Mat x2] / [*Sub]) -10/Subcaves History --------- Turn | Location | Event 9 | -11/Scrapyard | Discovered new exit (range 16) 89 | -11/Scrapyard | Entered Materials 253 | -10/Materials | Discovered new exit (range 16) 307 | -10/Materials | Build established: Mutant 433 | -10/Materials | Identified exit to Mines 486 | -10/Materials | Entered Mines 486 | -10/Mines | Discovered new exit (range 12) 618 | -10/Mines | Found a damaged Exp. Sensor Array with a note attached 621 | -10/Mines | Found Prototype Device 627 | -10/Mines | Learned 4 Materials zone layouts 728 | -10/Mines | Received a Rocket Launcher from a helpful Derelict 750 | -10/Mines | Discovered new exit (range 11) 1287 | -10/Mines | Assisted by bots powering up and referring to "LRC-V3" 1447 | -10/Mines | Discovered new exit (range 5) 1463 | -10/Mines | Entered Subcaves 1463 | -10/Subcaves | Accompanied by 2 allies 1466 | -10/Subcaves | Ambushed by Subdwellers from Twisted Machinery 1494 | -10/Subcaves | Core integrity fell below 50% 1498 | -10/Subcaves | Core integrity fell below 20% 1503 | -10/Subcaves | Destroyed by TG-8D5(R) with Subdweller Laser Last Messages --------------- 01479_ Lgt. Treads destroyed. 01479_ Destroyed Lgt. Treads. 01479_ Lgt. Nuclear Core destroyed. 01479_ Destroyed Lgt. Nuclear Core. 01481_ Rocket Launcher destroyed. 01483_ Acquired Particle Gun. 01487_ Particle Gun destroyed. 01488_ Subatomizers dissect the Particle Gun. 01489_ 2O-HKI(R) suffers critical hit (Burn). 01493_ Mining Laser destroyed. 01493_ Med. Laser destroyed. 01496_ Acquired Aluminum Leg. 01497_ Kicked 2O-HKI(R). 01498_ The unstable cave ceiling collapses. 01498_ Kicked 2O-HKI(R). 01499_ Subatomizers dissect the Particle Gun. 01499_ Imp. Heat Sink destroyed. 01499_ Kicked 2O-HKI(R). 01502_ Kicked 2O-HKI(R) out of the way. 01503_ Kicked 2O-HKI(R). Map ----- +----------------------------------------------------+ | ?????????????????????????????????????????????????? | | ?????????????????????????????????????????????????? | | ?????????????????????????????????????????????????? | | ?????????????????????????????????????????????????? | | ?????????????????????????????????????????????????? | | ?????????????????????????????????????????????????? | | ?????????????????????????????????????????????????? | | ?????????????????????????????????????????????????? | | ??????????????????????????? ?????????????????????? | | ??????????????????????????? ?????????????????????? | | ??????????????????????????# ?????????????????????? | | ?????????????????????????? ?????????????????????? | | ?????????????????????????? ?????????????????????? | | ?????????????????????????? ?????????????????????? | | ??????????????????????????? ##???????????????????? | | ??????????????????????????? ???????????????????? | | ??????????????????????????? ???####????????????? | | ??????????????????????????? #?? #????????????? | | ??????????????????????????? ### ??????????????? | | ??????????????????????????? ???????????????? | | ?????????????????????????### #????????????????? | | ?????????????????????????# #????????????????? | | ????????????????#???####?# #????????????????? | | ????????????????# # ##% #?????????????????? | | ?????????????????# "" !%% # #?????????????????? | | ????????????????# R[@ ;###?????????????????? | | ???????????????""##""""" R###???????????????????? | | ??????????????????##"""" ###?????????????????????? | | ???????????????????###""#????????????????????????? | | ?????????????????????##"?????????????????????????? | | ??????????????????????#??????????????????????????? | | ?????????????????????????????????????????????????? | | ?????????????????????????????????????????????????? | | ?????????????????????????????????????????????????? | | ?????????????????????????????????????????????????? | | ?????????????????????????????????????????????????? | | ?????????????????????????????????????????????????? | | ?????????????????????????????????????????????????? | | ?????????????????????????????????????????????????? | | ?????????????????????????????????????????????????? | | ?????????????????????????????????????????????????? | | ?????????????????????????????????????????????????? | | ?????????????????????????????????????????????????? | | ?????????????????????????????????????????????????? | | ?????????????????????????????????????????????????? | | ?????????????????????????????????????????????????? | | ?????????????????????????????????????????????????? | | ?????????????????????????????????????????????????? | | ?????????????????????????????????????????????????? | | ?????????????????????????????????????????????????? | +----------------------------------------------------+ Best States ------------- Heat Dissipation 39 Energy Generation 10 Energy Capacity 125 Matter Stores 300 Matter Capacity 300 Sight Range 16 Terrain Scan Density 10 Evasion (%) 40 Recoil Reduction 2 Item Schematics ----------------- None Robot Schematics ------------------ None Fabricated ------------ Nothing Repaired ---------- Nothing Alien Tech Used ----------------- None Achievements -------------- None Challenges ------------ None Game ------ Seed TachyonGammaModule Manual? 0 Play Time 00:11:24 Cumulative 193.7 hours Start 2025.05.12 @ 20:37:34 End 2025.05.12 @ 20:47:57 Sessions 1 Manual Loads 0 Difficulty Rogue Special Mode None Game No. 188 Rogue 188 Adventurer 0 Explorer 0 Win Type - Total 1 Types 1/0/0/0/0/0/0/0/0/0 Lore% 68 Gallery% 55 Achievement% 48 Wizard Run 0 Options --------- Layout 1 ASCII 0 Keyboard 0 Movement Mouse Keybinds 0 Fullscreen 1 Font 24/Smallcaps Map View 50x35 Zoom Use 0% Tactical HUD 1 Map Filters NONE Filters NONE Steam 1 RUN: e44a902f-4ade-49b3-8fc3-165c17e724ef